fUSD/lending_fUSD_20250225
["ID","MTS","AMOUNT","RATE_DAILY","PERIOD"]
[354478090,1740525043372,-1371.41,0.00046575,120]
[354478091,1740525043382,-500.0,0.00046575,120]
[354478092,1740525043391,-500.0,0.00046575,120]
[354478093,1740525043400,-500.0,0.00046575,120]
[354478094,1740525043409,-605.41119148,0.00046575,120]
[354478095,1740525043418,-500.0,0.00046575,120]
[354478096,1740525043428,-500.0,0.00046575,120]
[354478097,1740525043437,-879.83,0.00046575,120]
[354478099,1740525043446,-504.48055057,0.00046575,120]
[354478100,1740525043457,-500.0,0.00046575,120]
[354478102,1740525043468,-605.97,0.00046575,120]
[354478104,1740525043478,-500.0,0.00046575,120]
[354478107,1740525043487,-500.0,0.00046575,120]
[354478110,1740525043496,-551.04460079,0.00046575,120]
[354478113,1740525043507,-759.66,0.00046575,120]
[354478114,1740525043516,-500.0,0.00046575,120]
[354478115,1740525043525,-501.93053949,0.00046575,30]
[354478116,1740525043535,-500.0,0.00046575,120]
[354478117,1740525043544,-500.0,0.00046575,120]
[354478118,1740525043553,-500.0,0.00046575,120]
[354478119,1740525043562,-609.24340125,0.00046575,120]
[354478120,1740525043571,-936.21,0.00046575,120]
[354478121,1740525043581,-543.08,0.00046575,120]
[354478122,1740525043590,-2396.25,0.00046575,120]
[354478123,1740525043600,-158.663894,0.00046575,120]
[354478124,1740525043610,-2160.09,0.00046575,120]
[354478125,1740525043620,-500.0,0.00046575,120]
[354478126,1740525043630,-751.81,0.00046575,120]
[354478127,1740525043639,-500.0,0.00046575,120]
[354478128,1740525043648,-500.0,0.00046575,120]
[354478129,1740525043658,-904.09,0.00046575,120]
[354478130,1740525043667,-500.0,0.00046575,120]
[354478131,1740525043676,-500.0,0.00046575,120]
[354478132,1740525043685,-500.0,0.00046575,120]
[354478133,1740525043695,-500.0,0.00046575,120]
[354478134,1740525043704,-676.52,0.00046575,120]
[354478135,1740525043714,-500.0,0.00046575,120]
[354478136,1740525043724,-1146.29,0.00046575,120]
[354478137,1740525043733,-1178.84,0.00046575,120]
[354478138,1740525043742,-619.35,0.00046575,120]
[354478139,1740525043752,-500.0,0.00046575,120]
[354478140,1740525043762,-500.0,0.00046575,120]
[354478141,1740525043771,-520.45842797,0.00046575,120]
[354478142,1740525043781,-536.61,0.00046575,120]
[354478143,1740525043790,-500.0,0.00046575,120]
[354478144,1740525043799,-3083.43,0.00046575,120]
[354478145,1740525043808,-897.05,0.00046575,120]
[354478146,1740525043818,-500.0,0.00046575,120]
[354478147,1740525043827,-500.0,0.00046575,120]
[354478148,1740525043837,-500.0,0.00046575,120]
[354478149,1740525043846,-500.0,0.00046575,120]
[354478150,1740525043855,-849.71,0.00046575,120]
[354478151,1740525043865,-1948.33,0.00046575,120]
[354478152,1740525043875,-500.0,0.00046575,120]
[354478153,1740525043884,-633.92,0.00046575,120]
[354478154,1740525043893,-1378.91,0.00046575,120]
[354478155,1740525043902,-500.0,0.00046575,120]
[354478156,1740525043912,-500.0,0.00046575,120]
[354478157,1740525043921,-516.4312328,0.00046575,120]
[354478158,1740525043930,-500.0,0.00046575,120]
[354478159,1740525043939,-764.46,0.00046575,120]
[354478160,1740525043948,-500.0,0.00046575,120]
[354478161,1740525043958,-500.0,0.00046575,120]
[354478162,1740525043967,-500.0,0.00046575,120]
[354478163,1740525043976,-500.0,0.00046575,120]
[354478164,1740525043985,-500.0,0.00046575,120]
[354478165,1740525043995,-907.54,0.00046575,120]
[354478166,1740525044004,-1479.7,0.00046575,120]
[354478168,1740525044013,-500.0,0.00046575,120]
[354478171,1740525044022,-500.0,0.00046575,120]
[354478173,1740525044031,-654.14,0.00046575,120]
[354478175,1740525044040,-500.0,0.00046575,120]
[354478177,1740525044050,-990.79,0.00046575,120]
[354478179,1740525044058,-500.0,0.00046575,120]
[354478180,1740525044067,-500.0,0.00046575,120]
[354478181,1740525044077,-651.65,0.00046575,120]
[354478182,1740525044086,-554.23,0.00046575,120]
[354478183,1740525044095,-1490.61,0.00046575,120]
[354478184,1740525044104,-814.5,0.00046575,120]
[354478185,1740525044113,-968.7,0.00046575,120]
[354478186,1740525044123,-1502.05,0.00046575,120]
[354478187,1740525044132,-705.36,0.00046575,120]
[354478188,1740525044142,-820.79,0.00046575,120]
[354478189,1740525044151,-500.0,0.00046575,120]
[354478190,1740525044160,-1726.41,0.00046575,120]
[354478191,1740525044170,-500.0,0.00046575,120]
[354478192,1740525044179,-500.0,0.00046575,120]
[354478193,1740525044188,-500.0,0.00046575,120]
[354478194,1740525044198,-500.0,0.00046575,120]
[354478195,1740525044207,-500.0,0.00046575,120]
[354478196,1740525044217,-2905.66,0.00046575,120]
[354478197,1740525044229,-830.57,0.00046575,120]
[354478198,1740525044240,-500.0,0.00046575,120]
[354478199,1740525044249,-500.0,0.00046575,120]
[354478200,1740525044259,-500.0,0.00046575,120]
[354478201,1740525044268,-800.38,0.00046575,120]
[354478202,1740525044278,-500.0,0.00046575,120]
[354478203,1740525044287,-500.0,0.00046575,120]
[354478204,1740525044297,-961.86,0.00046575,120]
[354478205,1740525044306,-2752.83,0.00046575,120]
[354478206,1740525044315,-500.0,0.00046575,120]
[354478207,1740525044324,-1818.4,0.00046575,120]
[354478208,1740525044334,-500.0,0.00046575,120]
[354478209,1740525044344,-500.0,0.00046575,120]
[354478210,1740525044353,-500.0,0.00046575,120]
[354478211,1740525044362,-500.0,0.00046575,120]
[354478212,1740525044376,-500.0,0.00046575,120]
[354478213,1740525044387,-657.75,0.00046575,120]
[354478214,1740525044397,-1159.26,0.00046575,120]
[354478215,1740525044407,-500.0,0.00046575,120]
[354478216,1740525044416,-500.0,0.00046575,120]
[354478217,1740525044426,-827.7,0.00046575,120]
[354478218,1740525044435,-500.63,0.00046575,120]
[354478219,1740525044445,-2444.54,0.00046575,120]
[354478220,1740525044455,-601.43,0.00046575,120]
[354478221,1740525044468,-500.0,0.00046575,120]
[354478222,1740525044477,-500.0,0.00046575,120]
[354478223,1740525044486,-500.0,0.00046575,120]
[354478224,1740525044497,-523.24,0.00046575,120]
[354478225,1740525044506,-500.0,0.00046575,120]
[354478226,1740525044515,-500.0,0.00046575,120]
[354478227,1740525044524,-500.0,0.00046575,120]
[354478228,1740525044533,-500.0,0.00046575,120]
[354478229,1740525044543,-2054.81,0.00046575,120]
[354478230,1740525044552,-867.84,0.00046575,120]
[354478231,1740525044562,-593.24,0.00046575,120]
[354478232,1740525044571,-500.0,0.00046575,120]
[354478233,1740525044580,-500.0,0.00046575,120]
[354478234,1740525044590,-1000.0,0.00046575,60]
[354478235,1740525044599,-500.0,0.00046575,120]
[354478236,1740525044609,-500.0,0.00046575,120]
[354478237,1740525044620,-1500.09,0.00046575,120]
[354478238,1740525044629,-500.0,0.00046575,120]
[354478239,1740525044638,-500.0,0.00046575,120]
[354478240,1740525044648,-1540.89,0.00046575,120]
[354478241,1740525044658,-2723.23,0.00046575,120]
[354478242,1740525044667,-500.0,0.00046575,120]
[354478243,1740525044678,-500.0,0.00046575,120]
[354478244,1740525044688,-500.0,0.00046575,120]
[354478245,1740525044697,-816.58,0.00046575,120]
[354478246,1740525044706,-193.77384328,0.00046575,120]
[354478247,1740525044715,-500.0,0.00046575,2]
[354478248,1740525044725,-859.93,0.00046575,120]
[354478249,1740525044734,-1544.98,0.00046575,120]
[354478250,1740525044743,-500.0,0.00046575,120]
[354478251,1740525044753,-500.0,0.00046575,120]
[354478252,1740525044762,-1310.03,0.00046575,120]
[354478253,1740525044771,-1069.0,0.00046575,120]
[354478254,1740525044781,-500.0,0.00046575,120]
[354478255,1740525044791,-385.09852718,0.00046575,120]
[354478256,1740525044800,-2251.53,0.00046575,120]
[354478257,1740525044810,-500.0,0.00046575,120]
[354478258,1740525044820,-500.0,0.00046575,120]
[354478259,1740525044830,-1240.67,0.00046575,120]
[354478260,1740525044839,-590.82,0.00046575,120]
[354478261,1740525044848,-500.0,0.00046575,120]
[354478262,1740525044857,-500.0,0.00046575,120]
[354478263,1740525044868,-500.0,0.00046575,120]
[354478264,1740525044878,-500.0,0.00046575,120]
[354478265,1740525044887,-909.23,0.00046575,120]
[354478266,1740525044897,-500.0,0.00046575,120]
[354478267,1740525044906,-1483.83,0.00046575,120]
[354478268,1740525044916,-500.0,0.00046575,120]
[354478269,1740525044926,-1575.15,0.00046575,120]
[354478270,1740525044935,-500.0,0.00046575,120]
[354478271,1740525044944,-500.0,0.00046575,120]
[354478272,1740525044954,-1677.48,0.00046575,120]
[354478273,1740525044964,-500.0,0.00046575,120]
[354478274,1740525044973,-500.0,0.00046575,120]
[354478275,1740525044983,-500.0,0.00046575,120]
[354478276,1740525044992,-500.0,0.00046575,120]
[354478277,1740525045002,-500.0,0.00046575,120]
[354478278,1740525045011,-500.0,0.00046575,120]
[354478279,1740525045021,-760.61,0.00046575,120]
[354478280,1740525045030,-501.22951178,0.00046575,120]
[354478281,1740525045040,-500.0,0.00046575,120]
[354478282,1740525045050,-500.0,0.00046575,120]
[354478283,1740525045059,-500.0,0.00046575,120]
[354478284,1740525045068,-1561.03,0.00046575,120]
[354478285,1740525045078,-533.35,0.00046575,120]
[354478286,1740525045087,-500.0,0.00046575,120]
[354478287,1740525045097,-691.08,0.00046575,120]
[354478288,1740525045106,-500.0,0.00046575,120]
[354478289,1740525045116,-2537.5,0.00046575,120]
[354478290,1740525045126,-500.0,0.00046575,120]
[354478291,1740525045135,-866.4,0.00046575,120]
[354478292,1740525045145,-1461.79,0.00046575,120]
[354478293,1740525045154,-500.0,0.00046575,120]
[354478294,1740525045302,-500.0,0.00046575,120]
[354478295,1740525045312,-500.0,0.00046575,120]
[354478296,1740525045321,-500.0,0.00046575,120]
[354478297,1740525045331,-500.0,0.00046575,120]
[354478298,1740525045340,-2958.25,0.00046575,120]
[354478299,1740525045350,-544.7594992,0.00046575,120]
[354478300,1740525045359,-601.52,0.00046575,120]
[354478301,1740525045369,-524.63,0.00046575,120]
[354478302,1740525045378,-1000.0,0.00046575,45]
[354478303,1740525045388,-500.0,0.00046575,120]
[354478304,1740525045397,-500.0,0.00046575,120]
[354478305,1740525045407,-1611.2,0.00046575,120]
[354478306,1740525045416,-2032.36,0.00046575,30]
[354478307,1740525045425,-500.0,0.00046575,120]
[354478308,1740525045435,-335.00409893,0.00046575,120]
[354478309,1740525045445,-2115.47,0.00046575,120]
[354478310,1740525045458,-1849.32,0.00046575,120]
[354478311,1740525045475,-500.0,0.00046575,120]
[354478312,1740525045484,-500.0,0.00046575,120]
[354478313,1740525045494,-720.68,0.00046575,120]
[354478314,1740525045503,-1039.9,0.00046575,120]
[354478315,1740525045514,-500.0,0.00046575,120]
[354478316,1740525045523,-500.0,0.00046575,120]
[354478317,1740525045533,-500.0,0.00046575,120]
[354478318,1740525045543,-500.0,0.00046575,120]
[354478319,1740525045552,-500.0,0.00046575,120]
[354478320,1740525045562,-163.30816559,0.00046575,120]
[354478321,1740525045571,-554.43,0.00046575,120]
[354478322,1740525045581,-720.96,0.00046575,120]
[354478323,1740525045590,-500.0,0.00046575,120]
[354478324,1740525045599,-811.37,0.00046575,120]
[354478325,1740525045608,-3035.12,0.00046575,120]
[354478326,1740525045619,-868.28,0.00046575,120]
[354478327,1740525045628,-500.0,0.00046575,120]
[354478328,1740525045637,-500.0,0.00046575,120]
[354478329,1740525045647,-500.0,0.00046575,120]
[354478330,1740525045656,-500.0,0.00046575,120]
[354478331,1740525045666,-2195.82,0.00046575,120]
[354478332,1740525045676,-500.0,0.00046575,120]
[354478333,1740525045685,-500.0,0.00046575,120]
[354478334,1740525045695,-930.8,0.00046575,120]
[354478335,1740525045704,-500.0,0.00046575,120]
[354478336,1740525045714,-500.0,0.00046575,120]
[354478337,1740525045724,-500.0,0.00046575,120]
[354478338,1740525045735,-701.76,0.00046575,120]
[354478339,1740525045744,-500.0,0.00046575,120]
[354478340,1740525045754,-500.0,0.00046575,120]
[354478341,1740525045764,-500.0,0.00046575,120]
[354478342,1740525045774,-500.0,0.00046575,120]
[354478343,1740525045783,-646.64,0.00046575,120]
[354478344,1740525045793,-2520.76,0.00046575,120]
[354478345,1740525045803,-1280.1,0.00046575,120]
[354478346,1740525045813,-500.0,0.00046575,120]
[354478347,1740525045823,-2539.43,0.00046575,120]
[354478348,1740525045832,-500.0,0.00046575,120]
[354478349,1740525045843,-570.3,0.00046575,120]
[354478350,1740525045852,-500.0,0.00046575,120]
[354478351,1740525045862,-500.0,0.00046575,120]
[354478352,1740525045872,-500.0,0.00046575,120]
[354478353,1740525045882,-349.66554839,0.00046575,120]
[354478354,1740525045892,-500.0,0.00046575,120]
[354478355,1740525045902,-546.75,0.00046575,120]
[354478356,1740525045911,-3136.51,0.00046575,120]
[354478357,1740525045921,-500.0,0.00046575,120]
[354478358,1740525045930,-976.16,0.00046575,120]
[354478359,1740525045940,-500.0,0.00046575,120]
[354478360,1740525045949,-500.0,0.00046575,120]
[354478361,1740525045958,-500.0,0.00046575,120]
[354478362,1740525045968,-583.37,0.00046575,30]
[354478363,1740525045978,-1269.74,0.00046575,120]
[354478364,1740525045987,-2849.14,0.00046575,120]
[354478365,1740525045999,-500.0,0.00046575,120]
[354478366,1740525046022,-500.0,0.00046575,120]
[354478367,1740525046036,-828.94,0.00046575,120]
[354478368,1740525046046,-607.67,0.00046575,120]
[354478369,1740525046055,-500.0,0.00046575,120]
[354478370,1740525046065,-500.0,0.00046575,120]
[354478371,1740525046074,-500.0,0.00046575,120]
[354478372,1740525046084,-666.23,0.00046575,120]
[354478373,1740525046093,-1035.28,0.00046575,120]
[354478374,1740525046103,-500.0,0.00046575,120]
[354478375,1740525046112,-500.0,0.00046575,120]
[354478376,1740525046122,-500.0,0.00046575,120]
[354478377,1740525046132,-500.0,0.00046575,120]
[354478378,1740525046142,-2106.09,0.00046575,120]
[354478379,1740525046152,-500.0,0.00046575,120]
[354478380,1740525046162,-500.0,0.00046575,120]
[354478381,1740525046172,-500.0,0.00046575,120]
[354478382,1740525046182,-859.48,0.00046575,120]
[354478383,1740525046191,-500.0,0.00046575,120]
[354478384,1740525046201,-500.0,0.00046575,120]
[354478385,1740525046211,-500.0,0.00046575,120]
[354478386,1740525046220,-500.0,0.00046575,120]
[354478387,1740525046230,-671.37,0.00046575,120]
[354478388,1740525046240,-1056.87,0.00046575,120]
[354478389,1740525046249,-500.0,0.00046575,120]
[354478390,1740525046259,-500.0,0.00046575,120]
[354478391,1740525046269,-1808.78,0.00046575,120]
[354478392,1740525046278,-547.53,0.00046575,120]
[354478393,1740525046288,-500.0,0.00046575,120]
[354478394,1740525046298,-500.0,0.00046575,120]
[354478395,1740525046307,-500.0,0.00046575,120]
[354478396,1740525046317,-1200.07,0.00046575,120]
[354478397,1740525046326,-500.0,0.00046575,120]
[354478398,1740525046336,-842.62,0.00046575,120]
[354478399,1740525046346,-500.0,0.00046575,120]
[354478400,1740525046355,-500.0,0.00046575,120]
[354478401,1740525046365,-739.84,0.00046575,120]
[354478402,1740525046376,-500.0,0.00046575,120]
[354478403,1740525046385,-500.0,0.00046575,120]
[354478404,1740525046395,-502.23470872,0.00046575,120]
[354478405,1740525046406,-1464.08,0.00046575,120]
[354478406,1740525046415,-1838.31,0.00046575,120]
[354478407,1740525046425,-500.0,0.00046575,120]
[354478408,1740525046435,-500.0,0.00046575,120]
[354478409,1740525046445,-500.0,0.00046575,120]
[354478410,1740525046455,-515.00003248,0.00046575,120]
[354478411,1740525046469,-670.26,0.00046575,120]
[354478412,1740525046478,-500.0,0.00046575,120]
[354478413,1740525046488,-500.0,0.00046575,120]
[354478414,1740525046497,-500.0,0.00046575,120]
[354478415,1740525046508,-605.29,0.00046575,120]
[354478416,1740525046517,-1098.29,0.00046575,120]
[354478417,1740525046527,-500.0,0.00046575,120]
[354478418,1740525046536,-867.36,0.00046575,120]
[354478419,1740525046546,-741.95,0.00046575,120]
[354478420,1740525046556,-662.58,0.00046575,120]
[354478421,1740525046565,-500.0,0.00046575,120]
[354478422,1740525046575,-3589.26,0.00046575,120]
[354478423,1740525046585,-500.0,0.00046575,120]
[354478424,1740525046594,-558.28,0.00046575,120]
[354478425,1740525046604,-1465.97,0.00046575,120]
[354478426,1740525046614,-500.0,0.00046575,120]
[354478427,1740525046624,-500.0,0.00046575,120]
[354478428,1740525046633,-500.0,0.00046575,120]
[354478429,1740525046643,-500.0,0.00046575,120]
[354478430,1740525046653,-1268.64,0.00046575,120]
[354478431,1740525046663,-500.0,0.00046575,120]
[354478432,1740525046673,-500.0,0.00046575,120]
[354478433,1740525046683,-597.88,0.00046575,120]
[354478434,1740525046692,-1357.06,0.00046575,120]
[354478435,1740525046702,-500.0,0.00046575,120]
[354478436,1740525046711,-500.0,0.00046575,120]
[354478437,1740525046721,-500.0,0.00046575,120]
[354478438,1740525046731,-500.0,0.00046575,120]
[354478439,1740525046741,-500.0,0.00046575,120]
[354478440,1740525046751,-500.0,0.00046575,120]
[354478441,1740525046760,-531.93,0.00046575,120]
[354478442,1740525046770,-1200.48,0.00046575,120]
[354478443,1740525046790,-500.0,0.00046575,120]
[354478444,1740525046811,-500.0,0.00046575,120]
[354478445,1740525046828,-500.0,0.00046575,120]
[354478446,1740525046841,-1210.5,0.00046575,120]
[354478447,1740525046853,-1440.59,0.00046575,120]
[354478448,1740525046864,-500.0,0.00046575,120]
[354478449,1740525046874,-500.0,0.00046575,120]
[354478450,1740525046884,-1686.17,0.00046575,120]
[354478451,1740525046895,-788.39,0.00046575,120]
[354478452,1740525046906,-500.0,0.00046575,120]
[354478453,1740525046916,-925.32,0.00046575,120]
[354478454,1740525046926,-500.0,0.00046575,120]
[354478455,1740525046936,-500.0,0.00046575,120]
[354478456,1740525046945,-500.0,0.00046575,120]
[354478457,1740525046955,-503.26,0.00046575,120]
[354478458,1740525046964,-500.0,0.00046575,120]
[354478459,1740525046974,-500.0,0.00046575,120]
[354478460,1740525046983,-500.0,0.00046575,120]
[354478461,1740525046993,-500.0,0.00046575,120]
[354478462,1740525047002,-500.0,0.00046575,120]
[354478463,1740525047012,-1716.09,0.00046575,120]
[354478464,1740525047022,-500.0,0.00046575,120]
[354478465,1740525047031,-500.0,0.00046575,120]
[354478467,1740525047041,-1821.6,0.00046575,120]
[354478469,1740525047050,-500.0,0.00046575,120]
[354478471,1740525047060,-941.15,0.00046575,120]
[354478473,1740525047070,-500.0,0.00046575,120]
[354478474,1740525047079,-500.0,0.00046575,120]
[354478475,1740525047089,-528.44,0.00046575,120]
[354478476,1740525047099,-500.0,0.00046575,120]
[354478477,1740525047108,-500.0,0.00046575,120]
[354478478,1740525047118,-1239.32,0.00046575,120]
[354478479,1740525047127,-809.18,0.00046575,120]
[354478480,1740525047137,-535.85350152,0.00046575,120]
[354478481,1740525047147,-1329.1,0.00046575,120]
[354478482,1740525047158,-1563.56,0.00046575,120]
[354478483,1740525047174,-500.0,0.00046575,120]
[354478484,1740525047188,-500.0,0.00046575,120]
[354478485,1740525047204,-2176.41,0.00046575,120]
[354478486,1740525047214,-500.0,0.00046575,120]
[354478487,1740525047223,-1038.76,0.00046575,120]
[354478488,1740525047235,-1046.05,0.00046575,120]
[354478489,1740525047244,-500.0,0.00046575,120]
[354478490,1740525047254,-2557.04,0.00046575,120]
[354478491,1740525047263,-500.0,0.00046575,120]
[354478492,1740525047272,-2237.87,0.00046575,120]
[354478493,1740525047282,-500.0,0.00046575,120]
[354478494,1740525047291,-500.0,0.00046575,120]
[354478495,1740525047301,-3102.5,0.00046575,120]
[354478496,1740525047310,-500.0,0.00046575,120]
[354478497,1740525047319,-2180.56,0.00046575,120]
[354478498,1740525047329,-500.0,0.00046575,120]
[354478499,1740525047339,-500.0,0.00046575,120]
[354478500,1740525047348,-500.0,0.00046575,120]
[354478501,1740525047357,-1055.16,0.00046575,120]
[354478502,1740525047367,-500.0,0.00046575,120]
[354478503,1740525047377,-700.04,0.00046575,120]
[354478504,1740525047386,-500.0,0.00046575,120]
[354478505,1740525047395,-932.23,0.00046575,120]
[354478506,1740525047405,-972.69,0.00046575,120]
[354478507,1740525047414,-812.48,0.00046575,120]
[354478508,1740525047424,-500.0,0.00046575,120]
[354478509,1740525047433,-1365.7,0.00046575,120]
[354478510,1740525047443,-221.17,0.00046575,7]
[354478511,1740525047454,-500.0,0.00046575,120]
[354478512,1740525047465,-1556.28,0.00046575,120]
[354478513,1740525047475,-1681.18,0.00046575,120]
[354478514,1740525047484,-643.17,0.00046575,120]
[354478515,1740525047493,-500.0,0.00046575,120]
[354478516,1740525047505,-500.0,0.00046575,120]
[354478517,1740525047515,-500.0,0.00046575,120]
[354478518,1740525047525,-762.11,0.00046575,120]
[354478519,1740525047536,-522.01572805,0.00046575,120]
[354478520,1740525047545,-500.0,0.00046575,120]
[354478521,1740525047555,-1517.67,0.00046575,120]
[354478522,1740525047564,-500.0,0.00046575,120]
[354478523,1740525047574,-500.0,0.00046575,120]
[354478524,1740525047584,-500.0,0.00046575,120]
[354478525,1740525047593,-500.0,0.00046575,120]
[354478526,1740525047603,-500.0,0.00046575,120]
[354478527,1740525047612,-2000.0,0.00046575,30]
[354478528,1740525047623,-697.13,0.00046575,120]
[354478529,1740525047633,-500.0,0.00046575,120]
[354478530,1740525047642,-500.0,0.00046575,120]
[354478531,1740525047653,-500.0,0.00046575,120]
[354478532,1740525047663,-2246.49,0.00046575,120]
[354478533,1740525047672,-676.45,0.00046575,120]
[354478534,1740525047682,-531.60414217,0.00046575,120]
[354478535,1740525047691,-500.0,0.00046575,120]
[354478536,1740525047700,-500.0,0.00046575,120]
[354478537,1740525048051,-2485.58,0.00046575,120]
[354478538,1740525048061,-500.0,0.00046575,120]
[354478539,1740525048071,-500.0,0.00046575,120]
[354478540,1740525048080,-500.0,0.00046575,120]
[354478541,1740525048090,-500.0,0.00046575,120]
[354478542,1740525048100,-757.3,0.00046575,120]
[354478543,1740525048110,-616.34,0.00046575,120]
[354478544,1740525048120,-500.0,0.00046575,120]
[354478545,1740525048129,-851.04,0.00046575,120]
[354478546,1740525048138,-500.0,0.00046575,120]
[354478547,1740525048148,-500.0,0.00046575,120]
[354478548,1740525048157,-796.54,0.00046575,120]
[354478549,1740525048167,-1896.83,0.00046575,120]
[354478550,1740525048177,-500.0,0.00046575,120]
[354478551,1740525048186,-1503.74,0.00046575,120]
[354478552,1740525048196,-500.0,0.00046575,120]
[354478553,1740525048206,-460.78487989,0.00046575,120]
[354478554,1740525048216,-544.12,0.00046575,120]
[354478555,1740525048226,-500.0,0.00046575,28]
[354478556,1740525048235,-248.93,0.00046575,120]
[354478557,1740525048246,-804.43,0.00046575,120]
[354478558,1740525048266,-500.0,0.00046575,120]
[354478559,1740525048288,-500.0,0.00046575,120]
[354478560,1740525048300,-1670.65,0.00046575,120]
[354478561,1740525048310,-500.0,0.00046575,120]
[354478562,1740525048320,-2523.18,0.00046575,120]
[354478563,1740525048330,-961.47,0.00046575,120]
[354478564,1740525048340,-500.0,0.00046575,120]
[354478565,1740525048350,-500.0,0.00046575,120]
[354478566,1740525048360,-500.0,0.00046575,120]
[354478567,1740525048370,-2386.5,0.00046575,120]
[354478568,1740525048380,-500.0,0.00046575,120]
[354478569,1740525048390,-1399.8,0.00046575,120]
[354478570,1740525048400,-500.0,0.00046575,120]
[354478571,1740525048409,-1298.67,0.00046575,120]
[354478572,1740525048419,-1273.31,0.00046575,120]
[354478573,1740525048429,-545.82,0.00046575,120]
[354478574,1740525048439,-1406.97,0.00046575,120]
[354478575,1740525048448,-880.77,0.00046575,120]
[354478576,1740525048460,-500.0,0.00046575,120]
[354478577,1740525048470,-810.33,0.00046575,120]
[354478578,1740525048479,-1580.97,0.00046575,120]
[354478579,1740525048488,-500.0,0.00046575,120]
[354478580,1740525048498,-1310.98,0.00046575,120]
[354478581,1740525048507,-1077.25,0.00046575,120]
[354478582,1740525048517,-500.0,0.00046575,120]
[354478583,1740525048527,-505.45,0.00046575,120]
[354478584,1740525048539,-500.0,0.00046575,120]
[354478585,1740525048549,-500.0,0.00046575,120]
[354478586,1740525048558,-904.45,0.00046575,120]
[354478587,1740525048568,-2988.53,0.00046575,120]
[354478588,1740525048577,-500.0,0.00046575,120]
[354478589,1740525048587,-500.0,0.00046575,120]
[354478590,1740525048596,-500.0,0.00046575,120]
[354478591,1740525048606,-3500.0,0.00046575,120]
[354478592,1740525048616,-500.0,0.00046575,120]
[354478593,1740525048626,-1908.67,0.00046575,120]
[354478594,1740525048636,-1789.03,0.00046575,120]
[354478595,1740525048645,-500.0,0.00046575,120]
[354478596,1740525048655,-3346.82,0.00046575,120]
[354478597,1740525048664,-792.56,0.00046575,120]
[354478598,1740525048675,-572.46,0.00046575,120]
[354478599,1740525048685,-500.0,0.00046575,120]
[354478600,1740525048695,-500.0,0.00046575,120]
[354478601,1740525048705,-6205.29,0.00046575,120]
[354478602,1740525048715,-530.28,0.00046575,120]
[354478603,1740525048725,-1610.37,0.00046575,120]
[354478604,1740525048735,-552.71,0.00046575,120]
[354478605,1740525048744,-1334.76,0.00046575,120]
[354478606,1740525048754,-2913.23,0.00046575,120]
[354478607,1740525048764,-500.0,0.00046575,120]
[354478608,1740525048774,-500.74,0.00046575,120]
[354478609,1740525048783,-1604.53,0.00046575,120]